[Event "Turkish Cup 2024"]
[Site "Denizli"]
[Date "2024.08.04"]
[Round "9"]
[White "Atis, Hasan"]
[Black "Acar, Erdogan"]
[Result "1-0"]
[ECO "B35"]
[WhiteElo "2080"]
[BlackElo "1726"]
[Annotator "RC"]
[PlyCount "195"]
[EventDate "2024.08.01"]
[EventType "swiss"]
[EventCountry "TUR"]
[SourceTitle "playchess.com"]
[Source "ChessBase"]
[SourceQuality "1"]
[TimeControl "5400+30"]

1. e4 {[%emt 0:04:00]} c5 {[%emt 0:01:00]} 2. Nf3 {[%emt 0:00:00]} g6 {[%emt 0:00:30]} 3. d4 {[%emt 0:00:00]} cxd4 {[%emt 0:00:00]} 4. Nxd4 {[%emt 0:00:30]} Bg7 {[%emt 0:00:00]} 5. Nc3 {[%emt 0:00:30]} Nc6 {[%emt 0:00:00]} 6. Be3 {[%emt 0:00:00]} Nf6 {[%emt 0:00:00]} 7. Bc4 {[%emt 0:00:00]} Qa5 {[%emt 0:00:00]} 8. O-O {[%emt 0:01:30]} O-O {[%emt 0:00:00]} 9. Bb3 {[%emt 0:00:00]} d6 {[%emt 0:00:30]} 10. h3 {[%emt 0:00:00]} Bd7 {[%emt 0:00:30]} 11. Re1 {[%emt 0:00:00]} Rac8 {[%emt 0:05:30]} 12. Nf3 {[%emt 0:00:00]} Qh5 {[%emt 0:03:30]} 13. Nd5 {[%emt 0:13:30]} Nxe4 {[%emt 0:28:30]} 14. Bxa7 {[%emt 0:01:30]} Ng5 {[%emt 0:03:30]} 15. Nxg5 {[%emt 0:01:30]} Qxg5 {[%emt 0:00:30]} 16. Be3 {[%emt 0:02:30]} Qh4 {[%emt 0:03:30]} 17. c3 {[%emt 0:00:30]} Be6 {[%emt 0:06:30]} 18. Qd2 {[%emt 0:14:30]} h6 {[%emt 0:02:30]} 19. Nf4 {[%emt 0:00:30]} Bxb3 {[%emt 0:01:30]} 20. axb3 {[%emt 0:00:00]} Ne5 {[%emt 0:02:30]} 21. Ra4 {[%emt 0:01:00]} Qg5 {[%emt 0:03:30]} 22. Kh1 {[%emt 0:02:30]} Qf5 {[%emt 0:00:30]} 23. Nd5 {[%emt 0:04:30]} Rfe8 {[%emt 0:00:30]} 24. Rd4 {[%emt 0:09:30]} g5 {[%emt 0:05:30]} 25. f4 {[%emt 0:11:30]} Ng6 {[%emt 0:18:07]} 26. Rb4 {[%emt 0:13:54]} g4 {[%emt 0:01:22]} 27. hxg4 {[%emt 0:00:06]} Qxg4 {[%emt 0:00:25]} 28. Bf2 {[%emt 0:00:36]} e6 {[%emt 0:02:07]} 29. Ne3 {[%emt 0:00:53]} Qh5+ {[%emt 0:00:11]} 30. Kg1 {[%emt 0:00:04]} d5 {[%emt 0:00:23]} 31. g3 {[%emt 0:05:25]} Rcd8 {[%emt 0:00:55]} 32. Qd1 {[%emt 0:04:10]} Qh3 {[%emt 0:01:38]} 33. Qg4 {[%emt 0:01:32]} Qxg4 {[%emt 0:00:04]} 34. Nxg4 {[%emt 0:00:00]} h5 {[%emt 0:01:16]} 35. Ne5 {[%emt 0:00:26]} Bxe5 {[%emt 0:01:45]} 36. fxe5 {[%emt 0:00:02]} Rd7 {[%emt 0:00:00]} 37. Kg2 {[%emt 0:00:18]} Ra8 {[%emt 0:00:14]} 38. Ra4 {[%emt 0:00:09]} Rdd8 {[%emt 0:00:45]} 39. Bc5 {[%emt 0:02:32]} Rdc8 {[%emt 0:02:55]} 40. Bd4 {[%emt 0:01:59]} Ne7 {[%emt 0:02:32]} 41. Kf3 {[%emt 0:03:31]} Kg7 {[%emt 0:00:46]} 42. Rg1 {[%emt 0:02:50]} b5 {[%emt 0:01:18]} 43. Raa1 {[%emt 0:02:14]} Nf5 {[%emt 0:01:00]} 44. Be3 {[%emt 0:01:09]} Ne7 {[%emt 0:01:27]} 45. Rh1 {[%emt 0:00:24]} Kg6 {[%emt 0:01:06]} 46. Kf4 {[%emt 0:00:01]} Nf5 {[%emt 0:01:02]} 47. Rag1 {[%emt 0:01:31]} Nh6 {[%emt 0:00:09]} 48. Ra1 {[%emt 0:00:26]} Ng4 {[%emt 0:00:17]} 49. Bd4 {[%emt 0:00:00]} Nh6 {[%emt 0:00:15]} 50. Rhg1 {[%emt 0:00:57]} Ng4 {[%emt 0:00:09]} 51. b4 {[%emt 0:00:08]} Nh6 {[%emt 0:01:03]} 52. Ra5 {[%emt 0:00:06]} Rab8 {[%emt 0:00:30]} 53. Bc5 {[%emt 0:00:34]} Rb7 {[%emt 0:00:50]} 54. Rga1 {[%emt 0:00:09]} Ng4 {[%emt 0:00:30]} 55. Ra7 {[%emt 0:00:20]} Rcc7 {[%emt 0:00:53]} 56. Rxb7 {[%emt 0:00:30]} Rxb7 {[%emt 0:00:00]} 57. Ra8 {[%emt 0:00:00]} Nh6 {[%emt 0:00:00]} 58. Re8 {[%emt 0:00:51]} Kh7 {[%emt 0:01:34]} 59. Be7 {[%emt 0:00:57]} Rc7 {[%emt 0:00:38]} 60. Bc5 {[%emt 0:00:42]} Rb7 {[%emt 0:00:25]} 61. Rf8 {[%emt 0:00:54]} Kg7 {[%emt 0:00:13]} 62. Ra8 {[%emt 0:00:42]} Kh7 {[%emt 0:00:30]} 63. Rc8 {[%emt 0:00:00]} Kg6 {[%emt 0:00:00]} 64. Re8 {[%emt 0:00:11]} Kh7 {[%emt 0:00:00]} 65. Be7 {[%emt 0:00:49]} Rc7 {[%emt 0:00:07]} 66. Kg5 {[%emt 0:00:27]} Ng8 {[%emt 0:01:08]} 67. Bc5 {[%emt 0:01:13]} Nh6 {[%emt 0:00:30]} 68. Kxh5 {[%emt 0:00:30]} Nf5 {[%emt 0:00:00]} 69. Kg4 {[%emt 0:00:00]} Rb7 {[%emt 0:00:00]} 70. Kf4 {[%emt 0:00:00]} Kg7 {[%emt 0:00:37]} 71. g4 {[%emt 0:00:15]} Nh4 {[%emt 0:00:06]} 72. Bd4 {[%emt 0:00:34]} Ng2+ {[%emt 0:01:06]} 73. Kg5 {[%emt 0:01:13]} Ne1 {[%emt 0:00:01]} 74. Bc5 {[%emt 0:00:16]} Nf3+ {[%emt 0:00:50]} 75. Kf4 {[%emt 0:00:30]} Nh4 {[%emt 0:00:00]} 76. Bf8+ {[%emt 0:00:07]} Kh7 {[%emt 0:00:00]} 77. Kg5 {[%emt 0:00:38]} Nf3+ {[%emt 0:00:12]} 78. Kf4 {[%emt 0:01:08]} Nh4 {[%emt 0:00:01]} 79. Bd6 {[%emt 0:00:00]} Kg7 {[%emt 0:00:14]} 80. Ke3 {[%emt 0:00:22]} Ng2+ {[%emt 0:01:55]} 81. Kd4 {[%emt 0:00:23]} Nf4 {[%emt 0:00:25]} 82. Be7 {[%emt 0:00:46]} Rc7 {[%emt 0:01:06]} 83. Bf6+ {[%emt 0:00:16]} Kh7 {[%emt 0:00:00]} 84. Ke3 {[%emt 0:00:58]} Ng6 {[%emt 0:00:45]} 85. Rb8 {[%emt 0:00:49]} Rc4 {[%emt 0:00:05]} 86. Rxb5 {[%emt 0:00:21]} Rxg4 {[%emt 0:00:44]} 87. Rb7 {[%emt 0:00:41]} Re4+ {[%emt 0:00:16]} 88. Kd2 {[%emt 0:00:00]} Kg8 {[%emt 0:00:39]} 89. Rb8+ {[%emt 0:00:34]} Kh7 {[%emt 0:00:30]} 90. b5 {[%emt 0:00:00]} Nf4 {[%emt 0:00:11]} 91. Rh8+ {[%emt 0:00:48]} Kg6 {[%emt 0:00:01]} 92. Rh2 {[%emt 0:00:17]} Ra4 {[%emt 0:00:54]} 93. b6 {[%emt 0:01:24]} Ra8 {[%emt 0:00:01]} 94. Rh8 {[%emt 0:00:02]} Ra2 {[%emt 0:00:34]} 95. Kc2 {[%emt 0:00:52]} d4 {[%emt 0:00:03]} 96. b7 {[%emt 0:00:21]} d3+ {[%emt 0:00:17]} 97. Kb1 {[%emt 0:00:48]} d2 {[%emt 0:00:09]} 98. Rh1 {[%emt 0:00:00]} 1-0

[Event "Turkish Cup 2024"]
[Site "Denizli"]
[Date "2024.08.04"]
[Round "9"]
[White "Turgut, Hakan"]
[Black "Dargali, Hakan"]
[Result "1/2-1/2"]
[ECO "E01"]
[WhiteElo "2052"]
[BlackElo "1973"]
[Annotator "RC"]
[PlyCount "90"]
[EventDate "2024.08.01"]
[EventType "swiss"]
[EventCountry "TUR"]
[SourceTitle "playchess.com"]
[Source "ChessBase"]
[SourceQuality "1"]
[TimeControl "5400+30"]

1. d4 {[%emt 0:01:00]} Nf6 {[%emt 0:04:00]} 2. g3 {[%emt 0:00:00]} e6 {[%emt 0:00:30]} 3. Bg2 {[%emt 0:00:00]} d5 {[%emt 0:00:30]} 4. Nf3 {[%emt 0:00:30]} Bd6 {[%emt 0:00:30]} 5. O-O {[%emt 0:00:00]} O-O {[%emt 0:00:00]} 6. c4 {[%emt 0:00:00]} c6 {[%emt 0:00:00]} 7. Qc2 {[%emt 0:02:30]} Nbd7 {[%emt 0:00:30]} 8. Rd1 {[%emt 0:00:30]} Qe7 {[%emt 0:01:30]} 9. Nbd2 {[%emt 0:04:30]} Re8 {[%emt 0:10:30]} 10. e4 {[%emt 0:01:30]} dxe4 {[%emt 0:00:30]} 11. Nxe4 {[%emt 0:00:30]} Nxe4 {[%emt 0:01:30]} 12. Qxe4 {[%emt 0:00:30]} e5 {[%emt 0:00:30]} 13. Bg5 {[%emt 0:08:30]} f6 {[%emt 0:01:30]} 14. Be3 {[%emt 0:02:30]} exd4 {[%emt 0:11:30]} 15. Qxe7 {[%emt 0:01:30]} Bxe7 {[%emt 0:00:30]} 16. Bxd4 {[%emt 0:04:30]} Nf8 {[%emt 0:00:30]} 17. Be3 {[%emt 0:05:30]} Ne6 {[%emt 0:01:30]} 18. Bh3 {[%emt 0:04:30]} Kf7 {[%emt 0:06:30]} 19. Nd2 {[%emt 0:09:30]} b6 {[%emt 0:21:30]} 20. Ne4 {[%emt 0:01:30]} Ba6 {[%emt 0:00:30]} 21. Rd7 {[%emt 0:18:30]} Red8 {[%emt 0:00:30]} 22. Nd6+ {[%emt 0:01:30]} Kf8 {[%emt 0:00:30]} 23. Bxe6 {[%emt 0:00:30]} Rxd7 {[%emt 0:00:00]} 24. Bxd7 {[%emt 0:00:30]} Bxd6 {[%emt 0:00:00]} 25. Rd1 {[%emt 0:00:30]} Rd8 {[%emt 0:06:30]} 26. Rxd6 {[%emt 0:01:30]} Ke7 {[%emt 0:00:00]} 27. c5 {[%emt 0:01:30]} Rxd7 {[%emt 0:00:00]} 28. Rxd7+ {[%emt 0:00:30]} Kxd7 {[%emt 0:00:30]} 29. cxb6 {[%emt 0:00:30]} axb6 {[%emt 0:00:30]} 30. Bxb6 {[%emt 0:00:00]} Ke6 {[%emt 0:00:00]} 31. Bd4 {[%emt 0:02:00]} g5 {[%emt 0:02:00]} 32. g4 {[%emt 0:02:30]} Be2 {[%emt 0:03:30]} 33. h3 {[%emt 0:00:30]} f5 {[%emt 0:00:30]} 34. gxf5+ {[%emt 0:01:30]} Kxf5 {[%emt 0:00:00]} 35. a4 {[%emt 0:01:30]} h5 {[%emt 0:02:00]} 36. Kg2 {[%emt 0:02:30]} g4 {[%emt 0:00:30]} 37. Kg3 {[%emt 0:00:30]} Bf1 {[%emt 0:01:30]} 38. hxg4+ {[%emt 0:02:30]} hxg4 {[%emt 0:00:30]} 39. Kh4 {[%emt 0:00:30]} Be2 {[%emt 0:00:30]} 40. Bb6 {[%emt 0:00:30]} Ke6 {[%emt 0:04:30]} 41. Kg5 {[%emt 0:00:30]} Kd7 {[%emt 0:00:30]} 42. a5 {[%emt 0:00:30]} Kc8 {[%emt 0:00:30]} 43. a6 {[%emt 0:00:30]} Kb8 {[%emt 0:00:00]} 44. a7+ {[%emt 0:00:30]} Kb7 {[%emt 0:00:00]} 45. Bc5 {[%emt 0:00:30]} Bd1 {[%emt 0:00:30]} 1/2-1/2

[Event "Turkish Cup 2024"]
[Site "Denizli"]
[Date "2024.08.04"]
[Round "9"]
[White "Yildirim, Ibrahim Halil"]
[Black "Cakir, Mert"]
[Result "1-0"]
[ECO "B45"]
[WhiteElo "2024"]
[BlackElo "1990"]
[Annotator "RC"]
[PlyCount "149"]
[EventDate "2024.08.01"]
[EventType "swiss"]
[EventCountry "TUR"]
[SourceTitle "playchess.com"]
[Source "ChessBase"]
[SourceQuality "1"]
[TimeControl "5400+30"]

1. e4 {[%emt 0:04:00]} c5 {[%emt 0:02:00]} 2. Nf3 {[%emt 0:00:00]} e6 {[%emt 0:00:30]} 3. d4 {[%emt 0:00:00]} cxd4 {[%emt 0:00:00]} 4. Nxd4 {[%emt 0:00:30]} Nc6 {[%emt 0:00:00]} 5. Nc3 {[%emt 0:00:00]} Nf6 {[%emt 0:00:00]} 6. Nxc6 {[%emt 0:00:00]} bxc6 {[%emt 0:00:00]} 7. e5 {[%emt 0:01:30]} Nd5 {[%emt 0:00:30]} 8. Ne4 {[%emt 0:00:30]} Qc7 {[%emt 0:00:00]} 9. f4 {[%emt 0:00:00]} Qb6 {[%emt 0:00:00]} 10. c4 {[%emt 0:00:00]} Bb4+ {[%emt 0:00:00]} 11. Ke2 {[%emt 0:00:00]} f5 {[%emt 0:01:00]} 12. Nf2 {[%emt 0:00:00]} Ba6 {[%emt 0:00:30]} 13. Kf3 {[%emt 0:00:00]} Ne7 {[%emt 0:00:30]} 14. Be3 {[%emt 0:00:00]} Bc5 {[%emt 0:00:30]} 15. Bxc5 {[%emt 0:00:30]} Qxc5 {[%emt 0:00:00]} 16. Qd6 {[%emt 0:00:30]} Qb6 {[%emt 0:00:00]} 17. Be2 {[%emt 0:00:00]} c5 {[%emt 0:10:30]} 18. Rhd1 {[%emt 0:00:00]} Rd8 {[%emt 0:03:30]} 19. b3 {[%emt 0:33:30]} Nc8 {[%emt 0:07:30]} 20. Qxb6 {[%emt 0:00:30]} axb6 {[%emt 0:00:30]} 21. a4 {[%emt 0:01:30]} Bb7+ {[%emt 0:02:30]} 22. Ke3 {[%emt 0:01:30]} d6 {[%emt 0:09:30]} 23. exd6 {[%emt 0:02:30]} Rxd6 {[%emt 0:00:30]} 24. Rxd6 {[%emt 0:02:30]} Nxd6 {[%emt 0:00:30]} 25. a5 {[%emt 0:00:00]} Kd7 {[%emt 0:06:30]} 26. axb6 {[%emt 0:04:00]} Kc6 {[%emt 0:01:30]} 27. b4 {[%emt 0:02:30]} cxb4 {[%emt 0:10:30]} 28. Rc1 {[%emt 0:03:30]} Ne4 {[%emt 0:12:30]} 29. c5 {[%emt 0:00:30]} Nxc5 {[%emt 0:10:30]} 30. Nd3 {[%emt 0:00:30]} Kxb6 {[%emt 0:00:00]} 31. Nxc5 {[%emt 0:06:30]} Bd5 {[%emt 0:00:00]} 32. Nd7+ {[%emt 0:01:30]} Kb7 {[%emt 0:00:00]} 33. Rb1 {[%emt 0:00:30]} Kc7 {[%emt 0:01:00]} 34. Nc5 {[%emt 0:02:30]} Kd6 {[%emt 0:00:30]} 35. Nd3 {[%emt 0:00:00]} b3 {[%emt 0:00:30]} 36. g3 {[%emt 0:04:00]} Rb8 {[%emt 0:02:30]} 37. Bd1 {[%emt 0:03:30]} h6 {[%emt 0:01:30]} 38. Nc1 {[%emt 0:00:30]} g5 {[%emt 0:00:30]} 39. Bxb3 {[%emt 0:01:30]} gxf4+ {[%emt 0:05:24]} 40. gxf4 {[%emt 0:00:00]} e5 {[%emt 0:02:20]} 41. Bc2 {[%emt 0:05:00]} Rxb1 {[%emt 0:01:43]} 42. Bxb1 {[%emt 0:00:30]} exf4+ {[%emt 0:00:21]} 43. Kxf4 {[%emt 0:00:00]} Be6 {[%emt 0:01:27]} 44. Bxf5 {[%emt 0:00:00]} Bc4 {[%emt 0:00:00]} 45. Bd3 {[%emt 0:01:30]} Be6 {[%emt 0:00:00]} 46. Ne2 {[%emt 0:00:00]} Ke7 {[%emt 0:00:53]} 47. Ng3 {[%emt 0:01:00]} Kf6 {[%emt 0:01:05]} 48. Nh5+ {[%emt 0:00:30]} Kf7 {[%emt 0:00:15]} 49. Ke5 {[%emt 0:00:30]} Bg4 {[%emt 0:00:55]} 50. Nf4 {[%emt 0:00:30]} Kg7 {[%emt 0:00:32]} 51. Bf5 {[%emt 0:00:30]} Bd1 {[%emt 0:00:12]} 52. Ke6 {[%emt 0:00:00]} Bb3+ {[%emt 0:00:53]} 53. Ke7 {[%emt 0:00:00]} Bf7 {[%emt 0:01:39]} 54. h3 {[%emt 0:01:30]} Bc4 {[%emt 0:00:49]} 55. Nh5+ {[%emt 0:00:30]} Kh8 {[%emt 0:00:00]} 56. Kf6 {[%emt 0:00:30]} Bg8 {[%emt 0:01:04]} 57. Bd3 {[%emt 0:02:30]} Bb3 {[%emt 0:00:17]} 58. Nf4 {[%emt 0:00:30]} Bg8 {[%emt 0:01:07]} 59. Kg6 {[%emt 0:00:30]} Ba2 {[%emt 0:00:15]} 60. Kxh6 {[%emt 0:00:30]} Bf7 {[%emt 0:00:20]} 61. Bg6 {[%emt 0:01:30]} Bg8 {[%emt 0:00:32]} 62. h4 {[%emt 0:01:30]} Bf7 {[%emt 0:00:55]} 63. h5 {[%emt 0:01:30]} Bc4 {[%emt 0:00:22]} 64. Be8 {[%emt 0:00:30]} Bb3 {[%emt 0:01:04]} 65. Ng6+ {[%emt 0:01:00]} Kg8 {[%emt 0:00:34]} 66. Ne5 {[%emt 0:00:01]} Ba2 {[%emt 0:00:47]} 67. Bd7 {[%emt 0:01:02]} Kh8 {[%emt 0:01:01]} 68. Kg6 {[%emt 0:00:51]} Bb1+ {[%emt 0:01:30]} 69. Bf5 {[%emt 0:00:21]} Ba2 {[%emt 0:00:00]} 70. h6 {[%emt 0:01:34]} Be6 {[%emt 0:01:40]} 71. Kf6 {[%emt 0:01:18]} Bg8 {[%emt 0:00:16]} 72. Be4 {[%emt 0:00:54]} Ba2 {[%emt 0:00:29]} 73. h7 {[%emt 0:01:01]} Bb3 {[%emt 0:00:41]} 74. Kg6 {[%emt 0:00:37]} Bd5 {[%emt 0:01:24]} 75. Kh6 {[%emt 0:00:11]} 1-0

[Event "Turkish Cup 2024"]
[Site "Denizli"]
[Date "2024.08.04"]
[Round "9"]
[White "Manas, Eren"]
[Black "Ilgaz, Yusuf Kerem"]
[Result "0-1"]
[ECO "B57"]
[WhiteElo "2013"]
[BlackElo "2006"]
[Annotator "RC"]
[PlyCount "148"]
[EventDate "2024.08.01"]
[EventType "swiss"]
[EventCountry "TUR"]
[SourceTitle "playchess.com"]
[Source "ChessBase"]
[SourceQuality "1"]
[TimeControl "5400+30"]

1. e4 {[%emt 0:01:00]} c5 {[%emt 0:01:00]} 2. Nf3 {[%emt 0:00:30]} d6 {[%emt 0:00:00]} 3. d4 {[%emt 0:00:00]} cxd4 {[%emt 0:00:00]} 4. Nxd4 {[%emt 0:00:00]} Nf6 {[%emt 0:00:30]} 5. Nc3 {[%emt 0:00:30]} Nc6 {[%emt 0:00:00]} 6. Bc4 {[%emt 0:04:30]} Qb6 {[%emt 0:00:00]} 7. Nb3 {[%emt 0:01:30]} e6 {[%emt 0:00:30]} 8. O-O {[%emt 0:02:30]} Be7 {[%emt 0:02:30]} 9. Be3 {[%emt 0:01:30]} Qc7 {[%emt 0:01:30]} 10. Be2 {[%emt 0:03:30]} a6 {[%emt 0:01:30]} 11. a4 {[%emt 0:01:30]} Ne5 {[%emt 0:08:30]} 12. a5 {[%emt 0:10:30]} Bd7 {[%emt 0:05:30]} 13. Bb6 {[%emt 0:04:30]} Qc8 {[%emt 0:01:30]} 14. Nd2 {[%emt 0:01:30]} Bc6 {[%emt 0:09:30]} 15. f4 {[%emt 0:07:30]} Ned7 {[%emt 0:01:30]} 16. Be3 {[%emt 0:00:30]} O-O {[%emt 0:02:30]} 17. Bf3 {[%emt 0:01:30]} d5 {[%emt 0:08:30]} 18. e5 {[%emt 0:03:30]} Ne8 {[%emt 0:00:30]} 19. Nb3 {[%emt 0:02:30]} Nc7 {[%emt 0:00:30]} 20. Nd4 {[%emt 0:01:30]} Nb5 {[%emt 0:04:30]} 21. Nce2 {[%emt 0:11:30]} Qc7 {[%emt 0:03:30]} 22. c4 {[%emt 0:05:30]} Nxd4 {[%emt 0:15:30]} 23. Nxd4 {[%emt 0:00:30]} Bc5 {[%emt 0:02:30]} 24. cxd5 {[%emt 0:04:30]} Bxd5 {[%emt 0:01:30]} 25. Bxd5 {[%emt 0:01:30]} exd5 {[%emt 0:00:00]} 26. Qb3 {[%emt 0:01:30]} Rfd8 {[%emt 0:06:00]} 27. Rfc1 {[%emt 0:06:30]} Nf8 {[%emt 0:03:30]} 28. Qd3 {[%emt 0:05:15]} Qe7 {[%emt 0:01:33]} 29. Kh1 {[%emt 0:00:42]} Bxd4 {[%emt 0:01:37]} 30. Bxd4 {[%emt 0:00:07]} g6 {[%emt 0:05:04]} 31. Bb6 {[%emt 0:03:37]} Rd7 {[%emt 0:00:45]} 32. Rc2 {[%emt 0:02:50]} Qe6 {[%emt 0:01:26]} 33. Rac1 {[%emt 0:01:29]} Qg4 {[%emt 0:01:45]} 34. Rf2 {[%emt 0:04:36]} Qf5 {[%emt 0:01:02]} 35. Qxf5 {[%emt 0:01:07]} gxf5 {[%emt 0:00:02]} 36. Rd2 {[%emt 0:00:38]} Ne6 {[%emt 0:01:11]} 37. g3 {[%emt 0:00:05]} d4 {[%emt 0:00:56]} 38. Rd3 {[%emt 0:03:27]} Rd5 {[%emt 0:00:42]} 39. Rc4 {[%emt 0:00:28]} Re8 {[%emt 0:00:56]} 40. Kg2 {[%emt 0:00:43]} Re7 {[%emt 0:00:35]} 41. Kf3 {[%emt 0:00:45]} Red7 {[%emt 0:00:47]} 42. h3 {[%emt 0:01:06]} f6 {[%emt 0:01:18]} 43. exf6 {[%emt 0:01:06]} Kf7 {[%emt 0:00:37]} 44. g4 {[%emt 0:00:50]} Kxf6 {[%emt 0:00:44]} 45. Kg3 {[%emt 0:00:36]} R7d6 {[%emt 0:01:01]} 46. Rc8 {[%emt 0:00:45]} Rc6 {[%emt 0:01:02]} 47. Rb8 {[%emt 0:00:48]} Rd7 {[%emt 0:00:27]} 48. Kf3 {[%emt 0:00:59]} Rc2 {[%emt 0:00:21]} 49. b3 {[%emt 0:00:19]} Rc3 {[%emt 0:00:07]} 50. Rxc3 {[%emt 0:00:58]} dxc3 {[%emt 0:00:30]} 51. Rc8 {[%emt 0:00:30]} Rd3+ {[%emt 0:00:30]} 52. Be3 {[%emt 0:00:00]} Nd4+ {[%emt 0:04:11]} 53. Kf2 {[%emt 0:00:01]} Nxb3 {[%emt 0:00:27]} 54. Ke2 {[%emt 0:00:41]} Rd5 {[%emt 0:01:24]} 55. Rxc3 {[%emt 0:00:15]} Nxa5 {[%emt 0:00:00]} 56. Rc7 {[%emt 0:00:22]} Kg6 {[%emt 0:01:18]} 57. Bb6 {[%emt 0:00:54]} Nc6 {[%emt 0:01:34]} 58. Ke3 {[%emt 0:00:50]} Rb5 {[%emt 0:00:24]} 59. Rxb7 {[%emt 0:00:31]} Na5 {[%emt 0:00:47]} 60. gxf5+ {[%emt 0:00:18]} Kh6 {[%emt 0:01:29]} 61. Rb8 {[%emt 0:00:46]} Nc4+ {[%emt 0:00:10]} 62. Kf3 {[%emt 0:00:31]} Nxb6 {[%emt 0:00:29]} 63. Kg4 {[%emt 0:00:19]} Nd5 {[%emt 0:01:01]} 64. Ra8 {[%emt 0:01:01]} Rb6 {[%emt 0:00:04]} 65. Rd8 {[%emt 0:00:06]} Ne3+ {[%emt 0:00:15]} 66. Kf3 {[%emt 0:00:42]} Nxf5 {[%emt 0:00:30]} 67. Ke4 {[%emt 0:00:00]} Kg6 {[%emt 0:00:25]} 68. Rg8+ {[%emt 0:00:00]} Ng7 {[%emt 0:00:22]} 69. f5+ {[%emt 0:00:35]} Kf7 {[%emt 0:00:30]} 70. Rh8 {[%emt 0:00:00]} h5 {[%emt 0:00:00]} 71. Ra8 {[%emt 0:00:16]} Rb4+ {[%emt 0:00:05]} 72. Ke5 {[%emt 0:00:24]} Rb5+ {[%emt 0:00:37]} 73. Ke4 {[%emt 0:00:04]} Ra5 {[%emt 0:00:18]} 74. h4 {[%emt 0:00:33]} Nxf5 {[%emt 0:00:27]} 0-1